fUSD/lending_fUSD_20250930
["ID","MTS","AMOUNT","RATE_DAILY","PERIOD"]
[388628032,1759270798984,-282.69549406,0.0001663,2]
[388628033,1759270801761,-167.05310542,0.0001663,2]
[388628034,1759270804769,-195.06812069,0.0001663,2]
[388628035,1759270807126,-348.87701262,0.0001663,2]
[388628036,1759270811795,-255.0,0.0001663,2]
[388628037,1759270813484,-300.0,0.0001663,2]
[388628038,1759270818914,-347.74070019,0.0001663,2]
[388628039,1759270824822,-337.98499269,0.0001663,2]
[388628040,1759270835761,-192.21574143,0.0001663,2]
[388628041,1759270835782,-300.0,0.0001664,2]
[388628042,1759270835804,-12.78425857,0.00016661,2]
[388628043,1759270840857,-231.73695489,0.00016661,2]
[388628044,1759270845716,-55.47878654,0.00016661,2]
[388628045,1759270845741,-167.14320807,0.00016721,2]
[388628046,1759270850119,-132.85679193,0.00016721,2]
[388628047,1759270850140,-300.0,0.00016721,2]
[388628048,1759270850163,-169.76126534,0.00016721,2]
[388628049,1759270869315,2669.77,0.00030137,120]
[388628050,1759270930173,-237.29389723,0.000167,2]
[388628051,1759270933555,-166.2470693,0.000167,2]
[388628052,1759270936383,-250.0,0.000167,2]
[388628053,1759270940592,-250.0,0.000167,2]
[388628054,1759270942689,-179.3729307,0.000167,2]
[388628055,1759270945187,-250.0,0.000167,2]
[388628056,1759270947664,-270.19356536,0.000167,2]
[388628057,1759270971490,-175.74466445,0.00016699,2]
[388628058,1759270971514,-129.66973794,0.00016699,2]
[388628059,1759270973216,-228.77203225,0.00016699,2]
[388628090,1759271432076,-475.16563432,0.00016793,2]
[388628092,1759271432086,-79.88436568,0.00016799,2]
[388628103,1759271432544,-920.11563432,0.00016799,2]
[388628104,1759271432554,-172.84888557,0.00016803,2]
[388628105,1759271432563,-2500.0,0.00016806,2]
[388628106,1759271432573,-150.0,0.00016813,7]
[388628107,1759271432582,-1505.4,0.00016823,2]
[388628108,1759271432591,-300.0,0.00016833,2]
[388628109,1759271432601,-300.0,0.00016834,2]
[388628110,1759271432611,-1200.0,0.00016834,2]
[388628111,1759271432620,-2500.0,0.00016835,2]
[388628112,1759271432630,-2500.0,0.00016835,2]
[388628113,1759271432639,-222.98,0.00016848,2]
[388628114,1759271432648,-165.76,0.00016891,2]
[388628115,1759271432658,-1942.67,0.00016954,2]
[388628116,1759271432668,-644.79446246,0.00017185,2]
[388628117,1759271432677,-257.91778498,0.00017185,2]
[388628118,1759271432686,-151.0,0.00017185,2]
[388628119,1759271432695,-7147.33368104,0.00017196,2]
[388628120,1759271432706,-280.00030056,0.00017196,2]
[388628121,1759271432718,-165.43,0.00017264,2]
[388628122,1759271432727,-168.7,0.00017327,2]
[388628123,1759271432736,-1164.7292,0.00017354,2]
[388628124,1759271432745,-249.357461,0.00017382,2]
[388628125,1759271432756,-184.74055332,0.00017382,2]
[388628126,1759271432766,-169.30773449,0.00017392,2]
[388628127,1759271432775,-184.74055332,0.00017402,2]
[388628128,1759271432785,-851.04670177,0.00017402,2]
[388628129,1759271432795,-184.74055332,0.00017402,2]
[388628130,1759271432804,-851.04670177,0.00017407,2]
[388628131,1759271432814,-184.74055332,0.00017416,2]
[388628132,1759271432824,-851.04670177,0.00017417,2]
[388628133,1759271432834,-249.357461,0.00017424,2]
[388628134,1759271432845,-169.30773449,0.00017434,2]
[388628135,1759271432854,-249.357461,0.00017436,2]
[388628136,1759271432863,-249.357461,0.00017436,2]
[388628137,1759271432873,-169.30773449,0.00017437,2]
[388628138,1759271432882,-550.0,0.0001744,2]
[388628139,1759271432896,-183.26500271,0.00017441,2]
[388628140,1759271432906,-151.0,0.00017441,2]
[388628141,1759271432915,-168.95699978,0.00017441,2]
[388628142,1759271432924,-1000.0,0.00017441,2]
[388628143,1759271432935,-151.0,0.00017441,2]
[388628144,1759271432944,-1000.0,0.00017441,2]
[388628145,1759271432953,-151.0,0.00017441,2]
[388628146,1759271432963,-1000.0,0.00017441,2]
[388628147,1759271432972,-151.0,0.00017441,2]
[388628148,1759271432981,-151.0,0.00017441,2]
[388628149,1759271432990,-151.0,0.00017441,2]
[388628150,1759271432998,-151.0,0.00017441,2]
[388628151,1759271433007,-151.0,0.00017441,2]
[388628152,1759271433017,-151.0,0.00017441,2]
[388628153,1759271433026,-151.0,0.00017441,2]
[388628154,1759271433036,-151.0,0.00017441,2]
[388628155,1759271433046,-151.0,0.00017441,2]
[388628156,1759271433055,-151.0,0.00017441,2]
[388628157,1759271433065,-151.0,0.00017441,2]
[388628158,1759271433074,-151.0,0.00017441,2]
[388628159,1759271433083,-151.0,0.00017441,2]
[388628160,1759271433092,-151.0,0.00017441,2]
[388628161,1759271433101,-151.0,0.00017441,2]
[388628162,1759271433111,-151.0,0.00017441,2]
[388628163,1759271433120,-500.0,0.00017441,2]
[388628164,1759271433129,-500.0,0.00017441,2]
[388628165,1759271433139,-500.0,0.00017441,2]
[388628166,1759271433148,-200.0,0.00017441,2]
[388628167,1759271433158,-500.0,0.00017441,2]
[388628168,1759271433167,-533.84080379,0.00017441,2]
[388628169,1759271433176,-500.0,0.00017441,2]
[388628170,1759271433185,-500.0,0.00017441,2]
[388628171,1759271433195,-151.0,0.00017441,2]
[388628172,1759271433204,-500.0,0.00017441,2]
[388628173,1759271433213,-151.0,0.00017441,2]
[388628174,1759271433223,-500.0,0.00017441,2]
[388628175,1759271433232,-151.0,0.00017441,2]
[388628176,1759271433242,-500.0,0.00017441,2]
[388628177,1759271433252,-322.6107,0.00017441,2]
[388628178,1759271433261,-151.0,0.00017441,2]
[388628179,1759271433271,-500.0,0.00017441,2]
[388628180,1759271433280,-151.0,0.00017441,2]
[388628181,1759271433290,-500.0,0.00017441,2]
[388628182,1759271433299,-151.0,0.00017441,2]
[388628183,1759271433308,-500.0,0.00017441,2]
[388628184,1759271433318,-151.0,0.00017441,2]
[388628185,1759271433327,-500.0,0.00017441,2]
[388628186,1759271433336,-151.0,0.00017441,2]
[388628187,1759271433346,-151.0,0.00017441,2]
[388628188,1759271433355,-151.0,0.00017441,2]
[388628189,1759271433365,-151.0,0.00017441,2]
[388628190,1759271433374,-151.0,0.00017441,2]
[388628191,1759271433384,-151.0,0.00017441,2]
[388628192,1759271433394,-151.0,0.00017441,2]
[388628193,1759271433403,-151.0,0.00017441,2]
[388628194,1759271433412,-151.0,0.00017441,2]
[388628195,1759271433421,-151.0,0.00017441,2]
[388628196,1759271433431,-151.0,0.00017441,2]
[388628197,1759271433442,-151.0,0.00017441,2]
[388628198,1759271433453,-177.10399553,0.00017441,2]
[388628199,1759271433462,-500.0,0.00017441,2]
[388628200,1759271433471,-500.0,0.00017441,2]
[388628201,1759271433480,-500.0,0.00017441,2]
[388628202,1759271433489,-500.0,0.00017441,2]
[388628203,1759271433498,-500.0,0.00017441,2]
[388628204,1759271433507,-300.0,0.00017441,2]
[388628205,1759271433517,-500.0,0.00017441,2]
[388628206,1759271433527,-500.0,0.00017441,2]
[388628207,1759271433537,-500.0,0.00017441,2]
[388628208,1759271433547,-500.0,0.00017441,2]
[388628209,1759271433556,-500.0,0.00017441,2]
[388628210,1759271433566,-500.0,0.00017441,2]
[388628211,1759271433575,-500.0,0.00017441,2]
[388628212,1759271433584,-151.0,0.00017441,2]
[388628213,1759271433594,-151.0,0.00017441,2]
[388628214,1759271433603,-151.0,0.00017441,2]
[388628215,1759271433613,-151.0,0.00017441,2]
[388628216,1759271433623,-670.58624095,0.00017441,2]
[388628217,1759271433632,-169.30773449,0.00017449,2]
[388628218,1759271433642,-169.30773449,0.00017449,2]
[388628219,1759271433651,-564.14,0.0001745,2]
[388628220,1759271433661,-527.38729998,0.0001745,2]
[388628221,1759271433671,-500.0,0.0001745,2]
[388628222,1759271433680,-500.0,0.0001745,2]
[388628223,1759271433689,-167.42840215,0.0001745,2]
[388628224,1759271433702,-332.57159785,0.0001745,2]
[388628225,1759271433711,-500.0,0.0001745,2]
[388628226,1759271433720,-110.0278497,0.0001745,2]
[388628227,1759271433938,-389.9721503,0.0001745,2]
[388628228,1759271433948,-500.0,0.0001745,2]
[388628229,1759271433958,-500.0,0.0001745,2]
[388628230,1759271433967,-230.34928457,0.0001745,2]
[388628231,1759271434005,-269.65071543,0.0001745,2]
[388628232,1759271434015,-500.0,0.0001745,2]
[388628233,1759271434025,-500.0,0.0001745,2]
[388628234,1759271434034,-369.41569374,0.0001745,2]
[388628235,1759271434045,-130.58430626,0.0001745,2]
[388628236,1759271434055,-500.0,0.0001745,2]
[388628237,1759271434064,-500.0,0.0001745,2]
[388628238,1759271434074,-500.0,0.0001745,2]
[388628239,1759271434083,-500.0,0.0001745,2]
[388628240,1759271434093,-500.0,0.0001745,2]
[388628241,1759271434102,-500.0,0.0001745,2]
[388628242,1759271434112,-500.0,0.0001745,2]
[388628243,1759271434122,-500.0,0.0001745,2]
[388628244,1759271434132,-500.0,0.0001745,2]
[388628245,1759271434142,-327.57497276,0.0001745,2]
[388628246,1759271434152,-500.0,0.0001745,2]
[388628247,1759271434162,-500.0,0.0001745,2]
[388628248,1759271434171,-500.0,0.0001745,2]
[388628249,1759271434181,-500.0,0.0001745,2]
[388628250,1759271434191,-500.0,0.0001745,2]
[388628251,1759271434200,-500.0,0.0001745,2]
[388628252,1759271434209,-500.0,0.0001745,2]
[388628253,1759271434219,-500.0,0.0001745,2]
[388628254,1759271434228,-500.0,0.0001745,2]
[388628255,1759271434238,-500.0,0.0001745,2]
[388628256,1759271434247,-500.0,0.0001745,2]
[388628257,1759271434255,-500.0,0.0001745,2]
[388628258,1759271434264,-500.0,0.0001745,2]
[388628259,1759271434275,-332.36501813,0.0001745,2]
[388628260,1759271434285,-500.0,0.0001745,2]
[388628261,1759271434295,-500.0,0.0001745,2]
[388628262,1759271434306,-500.0,0.0001745,2]
[388628263,1759271434315,-500.0,0.0001745,2]
[388628264,1759271434325,-500.0,0.0001745,2]
[388628265,1759271434336,-500.0,0.0001745,2]
[388628266,1759271434345,-500.0,0.0001745,2]
[388628267,1759271434356,-500.0,0.0001745,2]
[388628268,1759271434365,-500.0,0.0001745,2]
[388628269,1759271434375,-500.0,0.0001745,2]
[388628270,1759271434385,-500.0,0.0001745,2]
[388628271,1759271434395,-86281.61898104,0.00017451,2]
[388628272,1759271434405,-851.04670177,0.00017459,2]
[388628273,1759271434414,-8507.61550756,0.00017473,2]
[388628274,1759271434424,-851.04670177,0.00017475,2]
[388628275,1759271434434,-249.357461,0.00017477,2]
[388628276,1759271434444,-184.74055332,0.00017496,2]
[388628277,1759271434454,-1000.0,0.00017573,2]
[388628278,1759271434463,-2040.6872,0.00017573,2]
[388628279,1759271434473,-510.0,0.00017623,2]
[388628280,1759271434483,-222.98,0.0001769,2]
[388628281,1759271434492,-150.0,0.0001769,2]
[388628282,1759271434502,-500.0,0.0001769,2]
[388628283,1759271434511,-150.0,0.0001769,2]
[388628284,1759271434521,-500.0,0.0001769,2]
[388628285,1759271434531,-1947.0,0.0001769,2]
[388628286,1759271434540,-500.0,0.0001769,2]
[388628287,1759271434551,-500.0,0.0001769,2]
[388628288,1759271434560,-150.0,0.0001769,2]
[388628289,1759271434570,-250.0,0.0001769,2]
[388628290,1759271434579,-150.0,0.0001769,2]
[388628291,1759271434589,-706.0,0.0001769,2]
[388628292,1759271434600,-150.0,0.0001769,2]
[388628293,1759271434610,-500.0,0.0001769,2]
[388628294,1759271434619,-152.72068177,0.0001769,2]
[388628295,1759271434629,-150.0,0.0001769,2]
[388628296,1759271434639,-150.0,0.0001769,2]
[388628297,1759271434651,-150.0,0.0001769,2]
[388628298,1759271434660,-500.0,0.0001769,2]
[388628299,1759271434670,-500.0,0.0001769,2]
[388628300,1759271434679,-500.0,0.0001769,2]
[388628301,1759271434688,-510.0,0.00017717,2]
[388628302,1759271434698,-564.14,0.00017724,2]
[388628303,1759271434707,-510.0,0.00017797,2]
[388628304,1759271434717,-510.0,0.00017808,2]
[388628305,1759271434726,-366.62,0.00017871,2]
[388628306,1759271434736,-510.0,0.00017897,2]
[388628307,1759271434746,-639.38323474,0.000179,2]
[388628308,1759271434756,-704.76,0.00017958,2]
[388628309,1759271434765,-1025.04,0.00017958,2]
[388628310,1759271434774,-500.0,0.00017964,2]
[388628311,1759271434786,-150.0,0.00017964,2]
[388628312,1759271434796,-500.0,0.00017964,2]
[388628313,1759271434805,-1947.0,0.00017964,2]
[388628314,1759271434815,-500.0,0.00017964,2]
[388628315,1759271434824,-500.0,0.00017964,2]
[388628316,1759271434833,-150.0,0.00017964,2]
[388628317,1759271434843,-706.0,0.00017964,2]
[388628318,1759271434852,-150.0,0.00017964,2]
[388628319,1759271434861,-500.0,0.00017964,2]
[388628320,1759271434871,-200.0,0.00017964,2]
[388628321,1759271434881,-271.0,0.00017964,2]
[388628322,1759271434894,-500.0,0.00017964,2]
[388628323,1759271434903,-500.0,0.00017964,2]
[388628324,1759271434912,-500.0,0.00017964,2]
[388628325,1759271434922,-564.14,0.00017998,2]
[388628326,1759271434931,-7206.36,0.00018009,2]
[388628327,1759271434940,-510.0,0.0001801,2]
[388628328,1759271434949,-708.329,0.00018064,2]
[388628329,1759271434958,-2500.0,0.00018064,2]
[388628330,1759271434970,-6847.75555834,0.00018107,2]
[388628331,1759271434979,-6005.1,0.00018154,2]
[388628332,1759271434989,-62210.2433,0.00018164,2]
[388628333,1759271434998,-225.36,0.00018192,2]
[388628334,1759271435007,-500.0,0.00018238,2]
[388628335,1759271435016,-150.0,0.00018238,2]
[388628336,1759271435026,-151.87235773,0.00018238,2]
[388628337,1759271435035,-1947.0,0.00018238,2]
[388628338,1759271435044,-500.0,0.00018238,2]
[388628339,1759271435053,-500.0,0.00018238,2]
[388628340,1759271435063,-200.0,0.00018238,2]
[388628341,1759271435072,-706.0,0.00018238,2]
[388628342,1759271435082,-200.0,0.00018238,2]
[388628343,1759271435091,-500.0,0.00018238,2]
[388628344,1759271435099,-500.0,0.00018238,2]
[388628345,1759271435109,-500.0,0.00018238,2]
[388628346,1759271435119,-500.0,0.00018238,2]
[388628347,1759271435129,-220.15634142,0.00018239,2]
[388628348,1759271435140,-510.0,0.00018247,2]
[388628349,1759271435151,-564.14,0.00018272,2]
[388628350,1759271435162,-8507.61550756,0.00018276,2]
[388628351,1759271435171,-200.0,0.00018279,2]
[388628352,1759271435180,-2417.16,0.0001828,2]
[388628353,1759271435191,-184.96168852,0.000183,2]
[388628354,1759271435202,-300.0,0.00018368,2]
[388628355,1759271435211,-510.0,0.00018379,2]
[388628356,1759271435220,-420.0,0.00018389,2]
[388628357,1759271435229,-769.80022968,0.000184,2]
[388628358,1759271435239,-382.6362858,0.000184,2]
[388628359,1759271435248,-235.0,0.000184,2]
[388628360,1759271435257,-370.35923647,0.00018425,2]
[388628361,1759271435267,-510.0,0.00018442,2]
[388628362,1759271435276,-510.0,0.0001845,2]
[388628363,1759271435285,-510.0,0.00018466,2]
[388628364,1759271435296,-300.0,0.00018473,2]
[388628365,1759271435306,-2500.0,0.00018479,2]
[388628366,1759271435316,-300.0,0.00018479,2]
[388628367,1759271435326,-2500.0,0.00018479,2]
[388628368,1759271435336,-300.0,0.00018479,2]
[388628369,1759271435348,-1680.0,0.00018481,2]
[388628370,1759271435357,-195.0,0.00018494,2]
[388628371,1759271435366,-500.0,0.00018512,2]
[388628372,1759271435376,-201.51253888,0.00018512,2]
[388628373,1759271435385,-1947.0,0.00018512,2]
[388628374,1759271435394,-500.0,0.00018512,2]
[388628375,1759271435404,-706.0,0.00018512,2]
[388628376,1759271435415,-150.0,0.00018512,2]
[388628377,1759271435426,-500.0,0.00018512,2]
[388628378,1759271435435,-500.0,0.00018512,2]
[388628379,1759271435446,-500.0,0.00018512,2]
[388628380,1759271435455,-151.0,0.0001853,2]
[388628381,1759271435464,-222.98,0.00018532,2]
[388628382,1759271435474,-1442.76,0.00018533,2]
[388628383,1759271435483,-150.99,0.00018533,2]
[388628384,1759271435492,-150.99,0.00018533,2]
[388628385,1759271435502,-81479.94,0.00018533,2]
[388628386,1759271435512,-564.14,0.00018546,2]
[388628387,1759271435521,-5000.0,0.0001855,2]
[388628388,1759271435531,-280.40476621,0.00018552,2]
[388628389,1759271435540,-267.46074303,0.00018554,2]
[388628390,1759271435550,-302.57,0.00018582,2]
[388628391,1759271435561,-151.45,0.00018582,2]
[388628392,1759271435570,-769.80022968,0.000186,2]
[388628393,1759271435580,-382.6362858,0.000186,2]
[388628394,1759271435599,-2000.0,0.000186,2]
[388628395,1759271435610,-510.0,0.00018621,2]
[388628396,1759271435620,-6005.1,0.0001864,2]
[388628397,1759271435630,-111198.08982464,0.0001865,2]
[388628407,1759271439254,-1494.6742915,0.0001865,2]
[388628408,1759271439269,-1446.82967868,0.0001865,2]
[388628415,1759271439365,-885.54739753,0.0001845,2]
[388628418,1759271439377,-680.68911547,0.0001845,2]
[388628488,1759271443915,-540.43967541,0.0001845,2]
[388628489,1759271443947,-847.45979621,0.0001845,2]
[388628490,1759271443960,-1817.4262981,0.0001845,2]
[388628491,1759271444062,-2604.75358087,0.0001845,2]
[388628492,1759271444072,-27721.23315622,0.0001865,2]
[388628493,1759271444167,-581842.20785602,0.0001865,2]
[388628494,1759271444177,-151.32,0.00018652,2]
[388628495,1759271444186,-500.0,0.00018673,2]
[388628496,1759271444196,-615.8052448,0.00018673,2]
[388628497,1759271444207,-245.85969833,0.00018673,2]
[388628498,1759271444217,-500.0,0.00018673,2]
[388628499,1759271444226,-500.0,0.00018673,2]
[388628500,1759271444235,-604.32702937,0.00018673,2]
[388628501,1759271444244,-500.0,0.00018673,2]
[388628502,1759271444253,-228.19849841,0.000187,2]
[388628504,1759271446827,-220.57041995,0.00018275,2]
[388628505,1759271446838,-350.30188761,0.000187,2]
[388628506,1759271446874,-20.26656124,0.000187,2]
[388628507,1759271446883,-150.0,0.00018748,2]
[388628508,1759271446898,-150.0,0.00018748,2]
[388628509,1759271446908,-150.0,0.00018748,2]
[388628510,1759271446918,-150.0,0.00018748,2]
[388628511,1759271446928,-500.0,0.00018748,2]
[388628512,1759271446938,-150.0,0.00018748,2]
[388628513,1759271446948,-102.22926629,0.00018748,2]
[388628514,1759271447052,-47.77073371,0.00018748,2]
[388628515,1759271447062,-150.0,0.00018748,2]
[388628516,1759271447071,-150.42039053,0.00018748,2]
[388628517,1759271447080,-150.0,0.00018748,2]
[388628518,1759271447089,-137.52586776,0.00018748,2]
[388628519,1759271447101,-12.47413224,0.00018748,2]
[388628520,1759271447111,-150.0,0.00018748,2]
[388628521,1759271447120,-150.0,0.00018748,2]
[388628522,1759271447130,-150.0,0.00018748,2]
[388628523,1759271447139,-150.0,0.00018748,2]
[388628524,1759271447149,-150.0,0.00018748,2]
[388628525,1759271447158,-500.0,0.00018748,2]
[388628526,1759271447167,-510.0,0.00018755,2]
[388628527,1759271447176,-510.0,0.00018764,2]
[388628528,1759271447186,-510.0,0.00018776,2]
[388628529,1759271447195,-1293.0,0.0001878,2]
[388628530,1759271447204,-161.01230176,0.0001878,2]
[388628531,1759271447214,-500.0,0.00018786,2]
[388628532,1759271447224,-984.92674528,0.00018786,2]
[388628533,1759271447239,-616.15,0.00018786,2]
[388628534,1759271447253,-345.92325472,0.00018786,2]
[388628535,1759271447263,-500.0,0.00018786,2]
[388628536,1759271447272,-706.0,0.00018786,2]
[388628537,1759271447281,-500.0,0.00018786,2]
[388628538,1759271447290,-500.0,0.00018786,2]
[388628539,1759271447300,-500.0,0.00018786,2]
[388628540,1759271447308,-769.80022968,0.000188,2]
[388628541,1759271447318,-382.6362858,0.000188,2]
[388628542,1759271447327,-334.5472959,0.0001881,2]
[388628543,1759271447336,-564.16762397,0.0001882,2]
[388628544,1759271447345,-151.81,0.0001893,2]
[388628545,1759271447354,-510.0,0.00018948,2]
[388628546,1759271447364,-150.72,0.0001899,2]
[388628547,1759271447374,-8768.69800013,0.00019,2]
[388628548,1759271449035,-500.0,0.00018275,2]
[388628549,1759271449044,-285.84022316,0.00018275,2]
[388628550,1759271449054,-559.15831752,0.00018275,2]
[388628551,1759271449063,-23687.7339709,0.00019,2]
[388628552,1759271449074,-386.10357055,0.00019,2]
[388628553,1759271449084,-2259.2,0.00019,2]
[388628554,1759271449147,-4704.89199225,0.00019,2]
[388628555,1759271449158,-122556.77665831,0.00019,2]
[388628556,1759271449168,-455.95,0.00019,2]
[388628557,1759271449201,-894.9260251,0.00019,2]
[388628558,1759271449212,-734.87735089,0.00019,2]
[388628559,1759271449223,-537.325,0.00019,2]
[388628560,1759271637386,30224.74378615,0.00030136,120]
[388628563,1759271891866,718.79,0.00030137,120]
[388628565,1759272087130,156.83,9.042e-05,2]
[388628566,1759272087834,156.83,9.518e-05,2]
[388628567,1759272088055,156.83,9.994e-05,2]
[388628568,1759272088282,156.83,0.0001047,2]
[388628569,1759272088659,156.83,0.00010946,2]
[388628570,1759272088858,156.83,0.00011422,2]
[388628571,1759272089003,156.83,0.00011898,2]
[388628572,1759272089220,156.83,0.00012374,2]
[388628573,1759272089412,156.83,0.0001285,2]
[388628574,1759272089578,156.83,0.00013326,2]
[388628575,1759272089797,156.83,0.00013801,2]
[388628576,1759272089886,156.83,0.00014277,2]
[388628578,1759272090062,156.83,0.00014753,2]
[388628579,1759272090850,156.83,0.00015229,2]
[388628580,1759272090957,156.83,0.00015705,2]
[388628581,1759272091203,156.83,0.00016181,2]
[388628584,1759272182002,2872.87,0.00030137,120]
[388628588,1759272607075,-156.83,0.00016657,2]
[388628589,1759272607097,-48.97992141,0.00016716,2]
[388628611,1759272632878,-201.02007859,0.00016716,2]
[388628612,1759272632889,-992.82488945,0.00016776,2]
[388628613,1759272632898,-168.96828797,0.00017,2]
[388628614,1759272632910,-2439.03171203,0.00017,2]
[388628615,1759272632920,-156.83,0.00017133,2]
[388628616,1759272632930,-834.5932015,0.00017259,2]
[388628617,1759272632942,-365.4067985,0.00017259,2]
[388628618,1759272632954,-144.92811036,0.0001726,2]
[388628619,1759272633002,-2966.36864464,0.0001726,2]
[388628620,1759272633012,-150.820849,0.0001726,2]
[388628621,1759272633022,-789.57007619,0.0001726,2]
[388628622,1759272633150,-1760.14094281,0.0001726,2]
[388628623,1759272633160,-1263.770276,0.0001726,2]
[388628624,1759272633170,-195.64474859,0.00017362,2]
[388628625,1759272633179,-182.02773531,0.00017365,2]
[388628626,1759272633189,-737.32685892,0.0001737,2]
[388628627,1759272633198,-737.32685892,0.00017372,2]
[388628628,1759272633208,-1236.43454488,0.00017372,2]
[388628629,1759272633218,-8919.04816106,0.00017373,2]
[388628630,1759272633229,-3265.56914858,0.00017373,2]
[388628631,1759272637849,-262.19797257,0.00017373,2]
[388628632,1759272637861,-46.23691135,0.00017373,2]
[388628633,1759272637871,-720.08666809,0.00017373,2]
[388628634,1759272637880,-195.64474859,0.00017374,2]
[388628635,1759272637893,-261.19167197,0.00017374,2]
[388628636,1759272638159,-1186.19583503,0.00017374,2]
[388628637,1759272638168,-306.77475057,0.00017375,2]
[388628638,1759272638180,-249.54080485,0.00017375,2]
[388628639,1759272638190,-720.08666809,0.00017378,2]
[388628640,1759272638199,-2941.71080655,0.00017382,2]
[388628641,1759272639967,-690.94567573,0.00017382,2]
[388628642,1759272639979,-4129.71441029,0.00017382,2]
[388628643,1759272639994,-4730.68130099,0.00017382,2]
[388628644,1759272640003,-455.14809776,0.00017382,2]
[388628645,1759272640012,-4335.52700059,0.00017382,2]
[388628646,1759272640243,-26066.8709804,0.00017382,2]
[388628647,1759272640254,-828.27599995,0.00017382,2]
[388628648,1759272640268,-4042.17016174,0.00017382,2]
[388628649,1759272640301,-2265.79635968,0.00017382,2]
[388628650,1759272640317,-452.20582707,0.00017382,2]
[388628651,1759272640328,-16568.0,0.00017382,2]
[388628652,1759272640339,-3779.62863851,0.00017382,2]
[388628653,1759272640374,-623.49738546,0.00017382,2]
[388628654,1759272640386,-2346.23436053,0.00017382,2]
[388628655,1759272640395,-636.38486128,0.00017384,2]
[388628656,1759272640406,-100.94199764,0.00017384,2]
[388628657,1759272640416,-569.73860699,0.00017385,2]
[388628658,1759272640425,-1149.07872537,0.00017386,2]
[388628659,1759272640434,-182.02773531,0.0001739,2]
[388628660,1759272640443,-742.97043414,0.00017391,2]
[388628661,1759272640456,-182.02773531,0.00017392,2]
[388628662,1759272640465,-455.14809776,0.00017392,2]
[388628663,1759272640475,-12493.05219356,0.00017392,2]
[388628664,1759272640485,-1149.07872537,0.00017393,2]
[388628665,1759272640495,-12493.05219356,0.00017393,2]
[388628666,1759272640505,-61308.20671393,0.00017396,2]
[388628667,1759272640515,-742.97043414,0.00017397,2]
[388628668,1759272640524,-1447.387507,0.00017397,2]
[388628669,1759272640535,-182.02773531,0.00017399,2]
[388628670,1759272640544,-556.31555542,0.00017402,2]
[388628671,1759272640554,-720.08666809,0.00017404,2]
[388628672,1759272640563,-195.64474859,0.00017406,2]
[388628673,1759272640572,-1149.07872537,0.00017406,2]
[388628674,1759272640581,-193.31302834,0.00017406,2]
[388628675,1759272640590,-720.08666809,0.00017408,2]
[388628676,1759272640599,-1236.43454488,0.00017411,2]
[388628677,1759272640608,-1149.07872537,0.00017413,2]
[388628678,1759272640617,-193.31302834,0.00017423,2]
[388628679,1759272640626,-61308.20671393,0.00017425,2]
[388628680,1759272640635,-455.14809776,0.00017426,2]
[388628681,1759272640644,-193.31302834,0.00017427,2]
[388628682,1759272640654,-61308.20671393,0.00017428,2]
[388628683,1759272640663,-742.97043414,0.00017428,2]
[388628684,1759272640672,-742.97043414,0.00017429,2]
[388628685,1759272640682,-569.73860699,0.00017429,2]
[388628686,1759272640693,-182.02773531,0.00017429,2]
[388628687,1759272640702,-455.14809776,0.00017429,2]
[388628688,1759272640712,-1447.387507,0.00017434,2]
[388628689,1759272640721,-1447.387507,0.00017437,2]